Cogmind - Beta 9.3 @@@ ROGUE MODE // 2019.12.18 @ 23:07:52 // Winter2019/RPGLIKE Player: Nalzok Result: Destroyed by G-47 Trooper with Particle Gun Performance ------------- Evolutions (1) 500 Regions Visited (4) 800 Robots Destroyed (21) 105 Value Destroyed (535) 535 Prototype IDs (0) 0 Alien Tech Used (0) 0 Bonus (0) 0 TOTAL SCORE: 1940 Bonus ------- None Cogmind --------- Core Integrity 0/600 Matter 102/300 Energy 100/100 System Corruption 0% Temperature Cool (11) Movement Treading (145) Location -9/Mines Parts ------- > --- POWER (1) -------- (None) > --- PROPULSION (1) --- Advanced Treads > --- UTILITY (1) ------ Propulsion Shielding > --- WEAPON (1) ------- Grenade Launcher > --- INVENTORY (0) ---- (None) Peak State ------------ > --- POWER ------------ Ion Engine > --- PROPULSION ------- Advanced Treads > --- UTILITY ---------- Propulsion Shielding > --- WEAPON ----------- Grenade Launcher > --- INVENTORY -------- (None) [Rating: 6] Favorites ----------- Power Ion Engine Engine Ion Engine Propulsion Aluminum Leg Treads Advanced Treads Leg Aluminum Leg Utility Propulsion Shielding Protection Propulsion Shielding Weapon Grenade Launcher Ballistic Gun Light Assault Rifle Launcher Grenade Launcher Build | -11 -10 -10 -9 -9 ------- Run | Scr Mat Min Mat Min Slots Evolved . | . . . . . Power . | . . . . . Propulsion . | . . . . . Utility . | . . . . . Weapon . | . . . . . Parts Attached 6 | . 2 1 3 . Power . | . . . . . Engine . | . . . . . Core . | . . . . . Reactor . | . . . . . Propulsion 4 | . 1 . 3 . Treads 1 | . . . 1 . Leg 3 | . 1 . 2 . Wheel . | . . . . . Hover . | . . . . . Flight . | . . . . . Utility 1 | . . 1 . . Device . | . . . . . Storage . | . . . . . Processor . | . . . . . Hackware . | . . . . . Protection 1 | . . 1 . . Artifact . | . . . . . Weapon 1 | . 1 . . . Energy Gun . | . . . . . Energy Cannon . | . . . . . Ballistic Gun . | . . . . . Ballistic Cannon . | . . . . . Launcher 1 | . 1 . . . Special Weapon . | . . . . . Impact Weapon . | . . . . . Slashing Weapon . | . . . . . Piercing Weapon . | . . . . . Special Melee Weapon . | . . . . . Unidentified Prototypes . | . . . . . Parts Lost 1 | . . . . 1 Power 1 | . . . . 1 Propulsion . | . . . . . Utility . | . . . . . Weapon . | . . . . . Highest Loss Streak 1 | . . . . 1 Average Slot Usage (%) 86 | . 75 93 100 75 Engine 24 | . 25 25 25 . Treads 1 | . . . 2 25 Leg 23 | . 25 25 22 . Protection 12 | . . 18 25 25 Ballistic Gun 7 | . 16 . . . Launcher 17 | . 8 25 25 25 Naked Turns . | . . . . . Heaviest Build 9 | 6 8 9 9 . Greatest Support 22 | 10 10 10 22 . Greatest Overweight (x) . | . . . . . Average Overweight (x) . | . . . . . Largest Inventory Capacity . | . . . . . Average Capacity . | . . . . . Most Carried . | . . . . . Average Carried . | . . . . . Final Capacity . | . . . . . Final Carried . | . . . . . Class Distribution -------------------- 100% | Mutant Dominant Class ---------------- Mutant | -10/Materials Mutant | -10/Mines Mutant | -9/Materials Mutant | -9/Mines Resources | -11 -10 -10 -9 -9 ----------- Run | Scr Mat Min Mat Min Matter Collected 278 | 200 6 53 19 . Remotely . | . . . . . Salvage Created 379 | . 156 7 216 . Parts 30 | . 11 1 18 . Haulers Intercepted . | . . . . . Recyclers Shooed 1 | . 1 . . . Parts Field Recycled . | . . . . . Retrieved Matter . | . . . . . Parts Self-Destructed . | . . . . . Prevented . | . . . . . Kills | -11 -10 -10 -9 -9 ------- Run | Scr Mat Min Mat Min Combat Hostiles Destroyed 17 | . 9 . 8 . Guns 4 | . 4 . . . AOE 13 | . 5 . 8 . Classes Destroyed 6 | . 2 1 3 . Worker 2 | . . 1 1 . Recycler 1 | . . . 1 . Operator 1 | . . . 1 . Swarmer 6 | . 3 . 3 . Grunt 10 | . 6 . 4 . Sentry 1 | . . . 1 . Best Kill Streak 7 | . 7 1 7 . Combat Bots Only 7 | . 7 . 5 . Max Kills in Single Turn 3 | . 3 1 2 . Gunslinging . | . . . . . Exploded 3 | . 3 . 2 . Melee . | . . . . . Uniques/NPCs Destroyed . | . . . . . Combat | -11 -10 -10 -9 -9 -------- Run | Scr Mat Min Mat Min Damage Taken 1108 | . 658 36 323 91 Core 909 | . 545 32 260 72 Absorbed by Shields . | . . . . . Redirected to Core 581 | . 352 14 174 41 Core Remaining (%) 69 | 100 . 38 . . Volleys Fired 50 | . 35 1 13 1 Largest 1 | . 1 1 1 1 Hottest 30 | . 30 30 30 30 Shots Fired 50 | . 35 1 13 1 Gun 31 | . 31 . . . Cannon . | . . . . . Launcher 19 | . 4 1 13 1 Special . | . . . . . Kinetic 31 | . 31 . . . Thermal . | . . . . . Explosive 19 | . 4 1 13 1 Electromagnetic . | . . . . . Robot Hit Streak 9 | . 7 . 9 . Robot Miss Streak 4 | . 2 3 4 1 Penetration Max . | . . . . . Secondary Targets . | . . . . . Shots Hit Robots 35 | . 24 . 11 . Core Hits 40 | . 20 2 18 . Critical Hits 1 | . 1 . . . Critical Kills . | . . . . . Critical Parts Destroyed 1 | . 1 . . . Melee Attacks . | . . . . . Impact . | . . . . . Slashing . | . . . . . Piercing . | . . . . . Sneak Attacks . | . . . . . Combat Hostiles . | . . . . . Follow-up Attacks . | . . . . . Damage Inflicted 1369 | . 565 28 677 99 Guns 201 | . 201 . . . Cannons . | . . . . . Explosions 1168 | . 364 28 677 99 Melee . | . . . . . Ramming . | . . . . . Kinetic 201 | . 201 . . . Thermal . | . . . . . Explosive 1168 | . 364 28 677 99 Electromagnetic . | . . . . . Impact . | . . . . . Slashing . | . . . . . Piercing . | . . . . . Highest Corruption . | . . . . . Average Corruption . | . . . . . Corruption Purged . | . . . . . Overload Shots . | . . . . . Overflow Damage 15 | . 14 . . 1 Projectiles . | . . . . . Explosions 15 | . 14 . . 1 Melee . | . . . . . Knockbacks . | . . . . . Impact . | . . . . . Kinetic . | . . . . . Secondary . | . . . . . Self-Inflicted Damage 209 | . 64 37 68 40 Shots 8 | . 2 1 4 1 Rammed . | . . . . . Targets Rammed . | . . . . . Kicked . | . . . . . Crushed . | . . . . . Highest Temperature 12 | . 12 . 4 2 Average Temperature 4 | . 6 . 1 2 Received Heat Transfer 336 | . 198 . 117 21 Siege Activations . | . . . . . Robots Corrupted . | . . . . . Combat Hostiles . | . . . . . Parts Fried . | . . . . . Impact Corruptions . | . . . . . Robots Melted . | . . . . . Combat Hostiles . | . . . . . Parts Melted . | . . . . . Heat Transferred . | . . . . . Parts Sabotaged . | . . . . . Parts Stolen . | . . . . . Parts Stripped . | . . . . . Power Chain Reactions . | . . . . . Missiles Intercepted . | . . . . . Alert | -11 -10 -10 -9 -9 ------- Run | Scr Mat Min Mat Min Peak Influence 339 | . 284 115 339 122 Average Influence 146 | . 135 114 175 122 Maximum Alert Level 1 | . 1 . 1 . Low Security (%) 71 | . 66 100 65 100 Level 1 28 | . 33 . 34 . Level 2 . | . . . . . Level 3 . | . . . . . Level 4 . | . . . . . Level 5 . | . . . . . High Security . | . . . . . Max Security . | . . . . . Squads Dispatched 6 | . 2 . 4 . Investigation 2 | . 1 . 1 . Extermination . | . . . . . Reinforcement 4 | . 1 . 3 . Assault . | . . . . . Garrison . | . . . . . Intercept . | . . . . . Construction Impeded . | . . . . . Haulers Reinforced . | . . . . . Stealth | -11 -10 -10 -9 -9 --------- Run | Scr Mat Min Mat Min Distress Signals 3 | . 1 . 2 . Communications Jammed . | . . . . . Distress Signals . | . . . . . Times Spotted 37 | . 11 . 16 10 Peak Tracking Total 10 | . 7 . 7 10 Tactical Retreats 1 | . . . 1 . Traps | -11 -10 -10 -9 -9 ------- Run | Scr Mat Min Mat Min Traps Triggered 2 | . 1 . 1 . Indirectly . | . . . . . Trap Hack Attempts . | . . . . . Triggered . | . . . . . Disarmed . | . . . . . Reprogrammed . | . . . . . Reused . | . . . . . Traps Extracted . | . . . . . Installed . | . . . . . Triggered . | . . . . . Machines | -11 -10 -10 -9 -9 ---------- Run | Scr Mat Min Mat Min Machines Disabled 4 | . 1 . 3 . Max in Single Turn 1 | . 1 . 1 . Machines Sabotaged . | . . . . . Garrisons Compromised . | . . . . . Overloaded Fab Kills . | . . . . . Fab Network Shutdowns . | . . . . . Hacking | -11 -10 -10 -9 -9 --------- Run | Scr Mat Min Mat Min Machines Accessed 2 | . 1 . 1 . Terminals 2 | . 1 . 1 . Fabricators . | . . . . . Repair Stations . | . . . . . Recycling Units . | . . . . . Scanalyzers . | . . . . . Garrison Access . | . . . . . Total Hacks 5 | . 2 . 3 . Successful 3 | . 1 . 2 . Failed 2 | . 1 . 1 . Catastrophic . | . . . . . Database Lockouts . | . . . . . Manual . | . . . . . Terminals 5 | . 2 . 3 . Fabricators . | . . . . . Repair Stations . | . . . . . Recycling Units . | . . . . . Scanalyzers . | . . . . . Garrison Access . | . . . . . Terminal Hacks 3 | . 1 . 2 . Level Access Points 1 | . . . 1 . Emergency Access Points 2 | . 1 . 1 . Fabricator Hacks . | . . . . . Repair Station Hacks . | . . . . . Recycling Unit Hacks . | . . . . . Scanalyzer . | . . . . . Garrison Access Hacks . | . . . . . Unauthorized Hacks . | . . . . . Terminals . | . . . . . Fabricators . | . . . . . Repair Stations . | . . . . . Recycling Units . | . . . . . Scanalyzers . | . . . . . Garrison Access . | . . . . . Data Cores Recovered 1 | . . . 1 . Used 1 | . . . 1 . Hacking Detections 1 | . 1 . . . Full Trace Events . | . . . . . Feedback Events . | . . . . . Feedback Blocked . | . . . . . Robot Schematics Acquired . | . . . . . Robots Built . | . . . . . Matter . | . . . . . Time . | . . . . . Total Robot Build Rating . | . . . . . Part Schematics Acquired . | . . . . . Parts Built . | . . . . . Matter . | . . . . . Time . | . . . . . Total Part Build Rating . | . . . . . Parts Repaired . | . . . . . Time . | . . . . . Parts Recycled . | . . . . . Recycled Matter . | . . . . . Retrieved Matter . | . . . . . Retrieved Components . | . . . . . Parts Scanalyzed . | . . . . . Part Schematics Acquired . | . . . . . Parts Damaged . | . . . . . Bothacking | -11 -10 -10 -9 -9 ------------ Run | Scr Mat Min Mat Min Used RIF Installer . | . . . . . Robots Hacked . | . . . . . Non-combat . | . . . . . Combat . | . . . . . Robot Hacks Applied . | . . . . . Relay Couplers Released . | . . . . . Robots Rewired . | . . . . . Allies Hacked . | . . . . . Hacks Repelled . | . . . . . Allies | -11 -10 -10 -9 -9 -------- Run | Scr Mat Min Mat Min Total Allies . | . . . . . Largest Group . | . . . . . Highest-Rated Group . | . . . . . Highest-Rated Ally . | . . . . . Total Orders . | . . . . . Ally Attacks . | . . . . . Total Damage . | . . . . . Kills . | . . . . . Allies Corrupted . | . . . . . Allies Melted . | . . . . . Intel | -11 -10 -10 -9 -9 ------- Run | Scr Mat Min Mat Min Robot Analysis Total . | . . . . . Derelict Logs Recovered 1 | . . 1 . . Drone Launches . | . . . . . Drone Recoveries . | . . . . . Exploration | -11 -10 -10 -9 -9 ------------- Run | Scr Mat Min Mat Min Turns Passed 649 | . 307 105 235 2 Spaces Moved 436 | 1 186 85 164 . Core . | . . . . . Treads 17 | . . . 17 . Legs 419 | 1 186 85 147 . Wheels . | . . . . . Hover . | . . . . . Flight . | . . . . . Fastest Speed 120 | 120 120 120 120 . Average Speed 120 | 120 120 120 122 . Slowest Speed 145 | 120 120 120 145 . Overloaded Moves . | . . . . . Propulsion Burnouts . | . . . . . Robots Hopped . | . . . . . Cave-ins Triggered . | . . . . . Exploration Rate (%) 23 | 2 47 33 31 2 Regions Visited 4 Branch Regions 2 Pre-discovered Areas 1 | . . 1 . . Known Exits Taken . | . . . . . Unknown Exits Taken 4 | 1 1 1 1 . Scrap Searched 1 | . . 1 . . Spaces Dug . | . . . . . Terrain Destroyed 77 | . 17 8 41 11 Melee . | . . . . . Projectile . | . . . . . AOE 77 | . 17 8 41 11 Actions | -11 -10 -10 -9 -9 --------- Run | Scr Mat Min Mat Min Total 514 | . 241 86 186 1 Wait 6 | . 6 . . . Move 432 | . 185 84 163 . Hop . | . . . . . Pick Up . | . . . . . Fast Attach 4 | . 1 1 2 . Attach . | . . . . . Detach . | . . . . . Swap 2 | . 1 . 1 . Drop 5 | . 2 . 3 . Fire 50 | . 35 1 13 1 Melee . | . . . . . Ram . | . . . . . Kick . | . . . . . Crush . | . . . . . Escape Stasis . | . . . . . Rewire . | . . . . . Trap . | . . . . . Miscellaneous 15 | . 11 . 4 . Route ------- -11/Scrapyard -10/Materials (discovered 2 exits: *Mat / [*Min]) -10/Mines -9/Materials (discovered 4 exits: Mat x3 / [*Min]) -9/Mines History --------- Turn | Location | Event 1 | -11/Scrapyard | Discovered new exit (range 0) 1 | -11/Scrapyard | Entered Materials 201 | -10/Materials | Core integrity fell below 50% 222 | -10/Materials | Discovered new exit (range 13) 230 | -10/Materials | Destroyed 7 combat bots 263 | -10/Materials | Discovered new exit (range 12) 308 | -10/Materials | Entered Mines 310 | -10/Mines | Reached level 2 317 | -10/Mines | Build established: Mutant 353 | -10/Mines | Learned location of Mines (-8) 400 | -10/Mines | Discovered new exit (range 9) 413 | -10/Mines | Entered Materials 414 | -9/Materials | Core integrity fell below 50% 415 | -9/Materials | Reached level 3 556 | -9/Materials | Identified exit to Materials 580 | -9/Materials | Core integrity fell below 20% 615 | -9/Materials | Discovered new exit (range 13) 648 | -9/Materials | Entered Mines 650 | -9/Mines | Reached level 4 650 | -9/Mines | Destroyed by G-47 Trooper with Particle Gun Last Messages --------------- 00634_ U-05 Engineer builds a Wall. 00634_ R-06 Scavenger collects Com. Wheel. 00638_ ALERT: Hostiles spotted, dispatching reinforcements to Terminal M006. LOCATION=UNKNOWN GOAL=ESCAPE Something is scanning the area. 00648_ Ion Engine destroyed. 00648_ Destroyed Ion Engine. 00649_ A derelict emerges from the shadows: "Quick, help me dispose of these Unaware!" 00649_ C-30 ARC bursts open, deploying its payload. 00649_ G-47 Trooper unfolds itself. 00649_ G-34 Mercenary unfolds itself. 00649_ C-30 ARC bursts open, deploying its payload. 00649_ L-31 Rogue unfolds itself. 00649_ G-34 Mercenary unfolds itself. 00649_ C-30 ARC bursts open, deploying its payload. 00649_ S-10 Pest unfolds itself. 00650_ Reached level 4. Map ----- +----------------------------------------------------+ | ???????????????????????????????????????????? | | ???????????????????????????????????????????? | | ???????????????????????????????????????????? | | ???????????????????????????????????????????? | | ???????????????????????????????????????????? | | ???????????????????????????????????????????? | | ???????????????????????????????????????????? | | ???????????????????????????????????????????? | | ???????????????????????????????????????????? | | ???????????????????????????????????????????? | | ???????????????????????????????????????????? | | ???????????????????????????????????????????? | | ???????????????????????????????????????????? | | ???????????????????????????????????????????? | | ???????????????????????????????????????????? | | ???????????????????????????????????????????? | | ???????????????????????????????????????????? | | ???????????????????????????????????????????? | | ???????????????????????????????????????????? | | ???????????????????????????????????????????? | | ???????????????????????????????????????????? | | ????????????????????#######????????????????? | | ????????????????????? ###??????????????? | | ?????????????????????? # #??????????????? | | ?????????????????????###g ##??????????????? | | ?????????????????????# g@ #??????????????? | | ?????????????????????##lsg #??????????????? | | ?????????????????????#g%gg #??????????????? | | ?????????????????????#s s #??????????????? | | ?????????????????????###s ###??????????????? | | ???????????????????????####????????????????? | | ???????????????????????????????????????????? | | ???????????????????????????????????????????? | | ???????????????????????????????????????????? | | ???????????????????????????????????????????? | | ???????????????????????????????????????????? | | | | | | | | | | | | | | | | | | | | | | | | | | | | | +----------------------------------------------------+ Best States ------------- Heat Dissipation 25 Energy Generation 10 Energy Capacity 250 Matter Stores 300 Matter Capacity 300 Sight Range 16 Terrain Scan Density 10 Propulsion Shielding 33 Evasion (%) 40 Recoil Reduction 1 Item Schematics ----------------- None Robot Schematics ------------------ None Fabricated ------------ Nothing Alien Tech Used ----------------- None Achievements -------------- None Challenges ------------ None RPGLIKE | -11 -10 -10 -9 -9 --------- Run | Scr Mat Min Mat Min Levels Raised 3 | . . 1 1 1 XP Earned 7870 | 3000 1195 500 2675 500 Upgrades . | . . . . . Protomatter Created 148 | . 112 . 36 . Integrity Restored 306 | . 210 . 96 . Core 306 | . 210 . 96 . Protomatter Decayed 21 | . 21 . . . Game ------ Seed SniperCloakStripper Manual? 0 Play Time 00:04:50 Cumulative 202.5 hours Start 2019.12.18 @ 22:59:51 End 2019.12.18 @ 23:07:52 Sessions 1 Manual Loads 0 Difficulty Rogue Special Mode Winter2019/RPGLIKE Game No. 328 Rogue 327 Adventurer 0 Explorer 1 Win Type - Total 1 Types 1/0/0/0/0/0/0 Lore% 59 Gallery% 76 Achievement% 46 Wizard Run 0 Options --------- ASCII 1 Keyboard 1 Movement Vi Keybinds 0 Fullscreen 1 Font 14/Cog Map View 72x52 Tactical HUD 1 Map Filters NONE Filters LOW_CONTRAST(13,24,33) Steam 0 RUN: 78e3ac30-965b-416d-9015-b6bcba6a394a